fUSD/lending_fUSD_20250322
["ID","MTS","AMOUNT","RATE_DAILY","PERIOD"]
[356563349,1742680245711,-151.0,0.00028203,7]
[356563350,1742680245720,-151.0,0.00028203,7]
[356563351,1742680245730,-151.0,0.00028203,7]
[356563353,1742680245740,-151.0,0.00028203,7]
[356563354,1742680245749,-151.0,0.00028203,7]
[356563355,1742680245759,-151.0,0.00028203,7]
[356563356,1742680245767,-151.0,0.00028203,7]
[356563357,1742680245776,-151.0,0.00028203,7]
[356563358,1742680245785,-151.0,0.00028203,7]
[356563359,1742680245794,-151.0,0.00028203,7]
[356563360,1742680245803,-151.0,0.00028203,7]
[356563361,1742680245812,-151.0,0.00028203,7]
[356563362,1742680245821,-151.147236,0.00028203,7]
[356563363,1742680245831,-151.0,0.00028203,7]
[356563364,1742680245840,-151.0,0.00028203,7]
[356563365,1742680245850,-151.0,0.00028203,7]
[356563366,1742680245859,-151.0,0.00028203,7]
[356563367,1742680245868,-151.0,0.00028203,7]
[356563368,1742680245877,-151.482718,0.00028203,7]
[356563369,1742680245887,-151.0,0.00028203,7]
[356563370,1742680245896,-151.0,0.00028203,7]
[356563371,1742680245905,-151.0,0.00028203,7]
[356563372,1742680245914,-151.0,0.00028203,7]
[356563373,1742680245924,-151.0,0.00028203,7]
[356563374,1742680245933,-152.502523,0.00028203,7]
[356563375,1742680245943,-151.0,0.00028203,7]
[356563376,1742680245952,-151.0,0.00028203,7]
[356563377,1742680245963,-152.924929,0.00028203,7]
[356563378,1742680245972,-151.0,0.00028203,7]
[356563379,1742680245982,-151.0,0.00028203,7]
[356563380,1742680245992,-151.0,0.00028203,7]
[356563381,1742680246003,-151.0,0.00028203,7]
[356563382,1742680246014,-151.0,0.00028203,7]
[356563383,1742680246025,-151.0,0.00028203,7]
[356563384,1742680246036,-151.0,0.00028203,7]
[356563385,1742680246047,-233.67449,0.00028203,7]
[356563386,1742680246056,-151.0,0.00028203,7]
[356563387,1742680246067,-151.0,0.00028203,7]
[356563388,1742680246078,-151.0,0.00028203,7]
[356563389,1742680246087,-151.0,0.00028203,7]
[356563390,1742680246098,-151.0,0.00028203,7]
[356563392,1742680246107,-266.237874,0.00028203,7]
[356563393,1742680246116,-151.0,0.00028203,7]
[356563394,1742680246125,-151.0,0.00028203,7]
[356563395,1742680246135,-151.0,0.00028203,7]
[356563396,1742680246145,-151.0,0.00028203,7]
[356563397,1742680246154,-151.0,0.00028203,7]
[356563398,1742680246163,-151.0,0.00028203,7]
[356563399,1742680246172,-520.86209,0.00028203,7]
[356563400,1742680246182,-520.86209,0.00028203,7]
[356563401,1742680246191,-151.0,0.00028203,7]
[356563402,1742680246200,-151.0,0.00028203,7]
[356563403,1742680246210,-151.0,0.00028203,7]
[356563405,1742680246219,-151.0,0.00028203,7]
[356563406,1742680246227,-151.0,0.00028203,7]
[356563407,1742680246237,-237.474916,0.00028203,7]
[356563408,1742680246246,-290.513564,0.00028203,7]
[356563409,1742680246255,-151.0,0.00028203,7]
[356563410,1742680246264,-151.0,0.00028203,7]
[356563411,1742680246273,-151.0,0.00028203,7]
[356563412,1742680246284,-606.722214,0.00028203,7]
[356563413,1742680246293,-151.0,0.00028203,7]
[356563414,1742680246302,-151.0,0.00028203,7]
[356563415,1742680246311,-606.722214,0.00028203,7]
[356563416,1742680246320,-151.0,0.00028203,7]
[356563417,1742680246329,-151.0,0.00028203,7]
[356563418,1742680246339,-151.0,0.00028203,7]
[356563419,1742680246348,-151.0,0.00028203,7]
[356563420,1742680246357,-151.0,0.00028203,7]
[356563421,1742680246366,-151.0,0.00028203,7]
[356563422,1742680246375,-153.829258,0.00028203,7]
[356563423,1742680246385,-151.0,0.00028203,7]
[356563424,1742680246395,-1177.19,0.00028203,2]
[356563425,1742680246404,-999.99,0.00028203,2]
[356563426,1742680246413,-483.12,0.00028203,2]
[356563427,1742680246422,-150.99,0.00028203,2]
[356563428,1742680246431,-16893.14,0.00028203,10]
[356563429,1742680246440,-265.35,0.00028203,2]
[356563430,1742680246449,-2000.0,0.00028414,2]
[356563431,1742680246458,-300.0,0.00028414,2]
[356563432,1742680246467,-300.0,0.00028414,2]
[356563433,1742680246476,-191.15,0.00028767,2]
[356563434,1742680246486,-1342.87,0.00028767,2]
[356563435,1742680246495,-282.11168189,0.00028983,2]
[356563436,1742680246508,-188.06,0.00029577,2]
[356563437,1742680246518,-198013.0,0.000296,2]
[356563438,1742680246529,-607.69,0.0002968,2]
[356563439,1742680246538,-151.0,0.000299,7]
[356563440,1742680246546,-151.0,0.000299,7]
[356563441,1742680246556,-191.15,0.00030136,2]
[356563442,1742680246565,-1342.87,0.00030137,2]
[356563443,1742680246574,-151.0,0.000302,7]
[356563444,1742680246583,-151.0,0.000302,7]
[356563445,1742680246592,-151.0,0.000302,7]
[356563446,1742680246601,-151.0,0.000302,7]
[356563447,1742680246611,-151.0,0.000302,7]
[356563448,1742680246620,-151.0,0.000302,7]
[356563449,1742680246629,-151.0,0.000302,7]
[356563450,1742680246638,-151.0,0.000302,7]
[356563451,1742680246647,-151.0,0.000302,7]
[356563452,1742680246656,-151.0,0.000302,7]
[356563453,1742680246666,-2000.0,0.00030204,4]
[356563454,1742680246676,-1001.82143179,0.00030252,5]
[356563455,1742680246686,-433.64580336,0.00030252,5]
[356563456,1742680246695,-1000.69076038,0.00030252,5]
[356563457,1742680246704,-1001.26624735,0.00030252,5]
[356563458,1742680246713,-245.99334606,0.00030252,5]
[356563459,1742680246723,-571.86868611,0.00030252,5]
[356563460,1742680246731,-151.0,0.000306,7]
[356563461,1742680246741,-270.350595,0.000306,7]
[356563462,1742680246750,-151.0,0.000306,7]
[356563463,1742680246759,-151.0,0.000306,7]
[356563464,1742680246769,-520.86209,0.000306,7]
[356563465,1742680246779,-520.86209,0.000306,7]
[356563466,1742680246788,-151.0,0.000306,7]
[356563467,1742680246797,-151.0,0.000306,7]
[356563468,1742680246807,-606.722214,0.000306,7]
[356563469,1742680246816,-606.722214,0.000306,7]
[356563470,1742680246825,-5551.0,0.000307,3]
[356563471,1742680246835,-626.89766807,0.00030739,3]
[356563472,1742680246845,-151.0,0.000309,7]
[356563473,1742680246854,-151.0,0.000309,7]
[356563474,1742680246863,-151.0,0.000309,7]
[356563475,1742680246872,-151.0,0.000312,7]
[356563476,1742680246882,-151.0,0.000312,7]
[356563477,1742680246892,-151.0,0.000312,7]
[356563478,1742680246902,-151.0,0.000312,7]
[356563479,1742680246911,-180.063691,0.000312,7]
[356563480,1742680246920,-2000.0,0.00031227,2]
[356563481,1742680246929,-300.0,0.00031227,2]
[356563482,1742680246939,-300.0,0.00031227,2]
[356563483,1742680246948,-1001.04974506,0.00031446,5]
[356563484,1742680246957,-151.0,0.000315,7]
[356563485,1742680246967,-191.15,0.00031506,2]
[356563486,1742680246977,-1342.87,0.00031507,2]
[356563487,1742680246987,-1018.27,0.00031593,30]
[356563488,1742680246997,-151.0,0.0003167,7]
[356563489,1742680247006,-151.0,0.0003167,7]
[356563490,1742680247015,-151.0,0.0003167,7]
[356563491,1742680247025,-151.0,0.0003167,7]
[356563492,1742680247034,-151.0,0.0003167,7]
[356563493,1742680247044,-151.0,0.0003167,7]
[356563494,1742680247053,-500.0,0.00031679,5]
[356563495,1742680247062,-150.0,0.00031741,2]
[356563496,1742680247072,-151.0,0.000318,7]
[356563497,1742680247081,-151.0,0.000318,7]
[356563498,1742680247091,-151.0,0.000318,7]
[356563499,1742680247100,-151.0,0.000318,7]
[356563500,1742680247110,-239.379604,0.000318,7]
[356563501,1742680247119,-151.0,0.000318,7]
[356563502,1742680247129,-5551.0,0.000318,5]
[356563503,1742680247138,-2100.0,0.000319,11]
[356563504,1742680247147,-151.0,0.0003219,7]
[356563505,1742680247157,-151.0,0.0003219,7]
[356563506,1742680247166,-151.0,0.0003219,7]
[356563507,1742680247175,-151.0,0.0003219,7]
[356563508,1742680247184,-152.815492,0.0003219,7]
[356563509,1742680247194,-151.0,0.0003219,7]
[356563510,1742680247203,-151.0,0.0003219,7]
[356563511,1742680247212,-151.0,0.0003219,7]
[356563512,1742680247222,-151.0,0.0003219,7]
[356563513,1742680247231,-520.86209,0.0003219,7]
[356563514,1742680247241,-520.86209,0.0003219,7]
[356563515,1742680247250,-198.036957,0.0003219,7]
[356563516,1742680247260,-151.0,0.0003219,7]
[356563517,1742680247270,-606.722214,0.0003219,7]
[356563518,1742680247283,-606.722214,0.0003219,7]
[356563519,1742680247292,-151.0,0.000322,7]
[356563520,1742680247302,-151.0,0.000322,7]
[356563521,1742680247311,-151.0,0.000322,7]
[356563522,1742680247322,-151.0,0.000322,7]
[356563523,1742680247331,-151.0,0.000322,7]
[356563524,1742680247340,-153.264031,0.000322,7]
[356563525,1742680247351,-151.0,0.0003249,7]
[356563526,1742680247361,-151.0,0.000325,7]
[356563527,1742680247370,-151.0,0.000325,7]
[356563528,1742680247380,-151.0,0.000325,7]
[356563529,1742680247389,-151.0,0.000325,7]
[356563530,1742680247399,-151.0,0.000325,7]
[356563531,1742680247408,-151.0,0.000325,7]
[356563532,1742680247418,-151.0,0.000325,7]
[356563533,1742680247427,-762.0,0.00032553,5]
[356563534,1742680247436,-198.28,0.00032646,2]
[356563535,1742680247445,-151.0,0.000328,7]
[356563536,1742680247455,-151.0,0.000328,7]
[356563537,1742680247464,-151.0,0.000328,7]
[356563538,1742680247474,-151.0,0.000328,7]
[356563539,1742680247483,-151.916278,0.000328,7]
[356563540,1742680247493,-191.15,0.00032876,2]
[356563541,1742680247501,-1342.87,0.00032877,2]
[356563542,1742680247510,-607.69,0.00032877,2]
[356563543,1742680247519,-151.0,0.000329,7]
[356563544,1742680247528,-151.0,0.000329,7]
[356563545,1742680247538,-151.0,0.000329,7]
[356563546,1742680247548,-10200.83,0.00033038,2]
[356563547,1742680247559,-151.0,0.000331,7]
[356563548,1742680247568,-151.0,0.000331,7]
[356563549,1742680247578,-151.0,0.000331,7]
[356563550,1742680247589,-151.0,0.000331,7]
[356563551,1742680247599,-151.0,0.000331,7]
[356563552,1742680247608,-282.11168189,0.00033167,2]
[356563553,1742680247618,-9673.33681214,0.00033744,2]
[356563554,1742680247627,-2483.31,0.00033844,30]
[356563555,1742680247636,-4578.77,0.00033844,2]
[356563556,1742680247646,-151.0,0.00033844,7]
[356563557,1742680247655,-151.0,0.00033844,7]
[356563558,1742680247664,-151.0,0.00033844,7]
[356563559,1742680247673,-151.0,0.00033844,7]
[356563560,1742680247683,-151.0,0.00033844,7]
[356563561,1742680247692,-204.7922,0.00033844,7]
[356563562,1742680247701,-151.0,0.00033844,7]
[356563563,1742680247841,-151.0,0.00033844,7]
[356563564,1742680247851,-151.0,0.00033844,7]
[356563565,1742680247860,-151.0,0.00033844,7]
[356563566,1742680247870,-151.0,0.00033844,7]
[356563567,1742680247880,-151.0,0.00033844,7]
[356563568,1742680247889,-151.0,0.00033844,7]
[356563569,1742680247898,-151.0,0.00033844,7]
[356563570,1742680247908,-520.86209,0.00033844,7]
[356563571,1742680247918,-520.86209,0.00033844,7]
[356563572,1742680247927,-151.0,0.00033844,7]
[356563573,1742680247936,-606.722214,0.00033844,7]
[356563574,1742680247945,-606.722214,0.00033844,7]
[356563575,1742680247955,-2003.62127389,0.00034041,5]
[356563576,1742680247964,-300.56004429,0.00034041,5]
[356563577,1742680247973,-300.75762759,0.00034041,5]
[356563578,1742680247983,-191.15,0.00034246,2]
[356563579,1742680247992,-150.0,0.00034548,10]
[356563580,1742680248001,-173.48,0.00034708,2]
[356563581,1742680248011,-174.17,0.00034708,2]
[356563582,1742680248020,-179.23,0.00035068,2]
[356563583,1742680248029,-2000.0,0.00035153,4]
[356563584,1742680248039,-151.0,0.000353,7]
[356563585,1742680248049,-151.0,0.000353,7]
[356563586,1742680248058,-151.0,0.000353,7]
[356563587,1742680248068,-151.0,0.000353,7]
[356563588,1742680248077,-151.0,0.0003559,7]
[356563589,1742680248086,-151.0,0.000356,7]
[356563590,1742680248096,-191.15,0.00035616,2]
[356563591,1742680248106,-5664.64493553,0.00036187,2]
[356563592,1742680248116,-5000.0,0.00036187,2]
[356563593,1742680248126,-5000.0,0.00036187,2]
[356563594,1742680248135,-5000.0,0.00036187,2]
[356563595,1742680248145,-5000.0,0.00036187,2]
[356563596,1742680248155,-151.0,0.00036187,7]
[356563597,1742680248165,-151.0,0.00036187,7]
[356563598,1742680248174,-279.703884,0.00036187,7]
[356563599,1742680248184,-250.0,0.00036566,2]
[356563600,1742680248193,-895.99,0.00036952,120]
[356563601,1742680248203,-191.15,0.00036986,2]
[356563602,1742680248212,-282.11168189,0.0003735,2]
[356563603,1742680248222,-151.0,0.00037921,7]
[356563604,1742680248231,-151.0,0.00037921,7]
[356563605,1742680248241,-151.0,0.00037921,7]
[356563606,1742680248250,-151.0,0.00037921,7]
[356563607,1742680248259,-168.008794,0.00037921,7]
[356563608,1742680248269,-151.0,0.00037921,7]
[356563609,1742680248283,-151.0,0.00037921,7]
[356563610,1742680248293,-1143.6,0.00037921,2]
[356563611,1742680248303,-167.83,0.00037921,2]
[356563612,1742680248313,-902.94,0.00037921,2]
[356563613,1742680248322,-442.93,0.00037921,2]
[356563614,1742680248332,-305.84,0.00037921,2]
[356563615,1742680248342,-429.26,0.00037921,2]
[356563616,1742680248351,-442.93,0.00037921,2]
[356563617,1742680248361,-442.93,0.00037921,2]
[356563618,1742680248379,-442.93,0.00037921,2]
[356563619,1742680248390,-442.93,0.00037921,2]
[356563620,1742680248407,-893.85,0.00037921,2]
[356563621,1742680248417,-780.77,0.00037921,2]
[356563622,1742680248426,-346.02,0.00037921,2]
[356563623,1742680248436,-442.27,0.00037921,2]
[356563624,1742680248446,-780.77,0.00037921,2]
[356563625,1742680248455,-301.08,0.00037921,2]
[356563626,1742680248465,-346.02,0.00037921,2]
[356563627,1742680248474,-150.0,0.00037921,2]
[356563628,1742680248484,-442.93,0.00037921,2]
[356563629,1742680248494,-780.77,0.00037921,2]
[356563630,1742680248506,-442.27,0.00037921,2]
[356563631,1742680248516,-346.02,0.00037921,2]
[356563632,1742680248525,-150.0,0.00037921,2]
[356563633,1742680248535,-780.77,0.00037921,2]
[356563634,1742680248545,-442.27,0.00037921,2]
[356563635,1742680248554,-346.02,0.00037921,2]
[356563636,1742680248564,-150.0,0.00037921,2]
[356563637,1742680248573,-780.77,0.00037921,2]
[356563638,1742680248583,-442.27,0.00037921,2]
[356563639,1742680248593,-442.93,0.00037921,2]
[356563640,1742680248602,-150.0,0.00037921,2]
[356563641,1742680248612,-1558.11,0.00037921,2]
[356563642,1742680248621,-442.93,0.00037921,2]
[356563643,1742680248632,-150.0,0.00037921,2]
[356563644,1742680248641,-150.0,0.00037921,2]
[356563645,1742680248651,-150.0,0.00037921,2]
[356563646,1742680248660,-442.93,0.00037921,2]
[356563647,1742680248669,-150.0,0.00037921,2]
[356563648,1742680248679,-442.93,0.00037921,2]
[356563649,1742680248688,-150.0,0.00037921,2]
[356563650,1742680248698,-442.93,0.00037921,2]
[356563651,1742680248707,-150.0,0.00037921,2]
[356563652,1742680248716,-442.93,0.00037921,2]
[356563653,1742680248726,-150.0,0.00037921,2]
[356563654,1742680248735,-150.0,0.00037921,2]
[356563655,1742680248745,-442.93,0.00037921,2]
[356563656,1742680248754,-442.93,0.00037921,2]
[356563657,1742680248763,-442.93,0.00037921,2]
[356563658,1742680248772,-442.93,0.00037921,2]
[356563659,1742680248781,-442.93,0.00037921,2]
[356563660,1742680248791,-442.93,0.00037921,2]
[356563661,1742680248800,-150.0,0.00037921,2]
[356563662,1742680248810,-442.27,0.00037921,2]
[356563663,1742680248820,-346.02,0.00037921,2]
[356563664,1742680248829,-442.93,0.00037921,2]
[356563665,1742680248838,-780.77,0.00037921,2]
[356563666,1742680248847,-150.0,0.00037921,2]
[356563667,1742680248857,-346.02,0.00037921,2]
[356563668,1742680248866,-780.77,0.00037921,2]
[356563669,1742680248875,-304.84,0.00037921,2]
[356563670,1742680248885,-150.0,0.00037921,2]
[356563671,1742680248894,-442.27,0.00037921,2]
[356563672,1742680248903,-780.77,0.00037921,2]
[356563673,1742680248912,-346.02,0.00037921,2]
[356563674,1742680248922,-442.93,0.00037921,2]
[356563675,1742680248932,-252.38,0.00037921,2]
[356563676,1742680248941,-150.0,0.00037921,2]
[356563677,1742680248950,-150.0,0.00037921,2]
[356563678,1742680248960,-442.27,0.00037921,2]
[356563679,1742680248969,-150.0,0.00037921,2]
[356563680,1742680248978,-442.93,0.00037921,2]
[356563681,1742680248988,-150.0,0.00037921,2]
[356563682,1742680248998,-780.77,0.00037921,2]
[356563683,1742680249007,-150.0,0.00037921,2]
[356563684,1742680249017,-150.0,0.00037921,2]
[356563685,1742680249026,-780.77,0.00037921,2]
[356563686,1742680249035,-150.0,0.00037921,2]
[356563687,1742680249044,-200.91,0.00037921,2]
[356563688,1742680249053,-1385.82,0.00037921,2]
[356563689,1742680249062,-150.0,0.00037921,2]
[356563690,1742680249071,-150.0,0.00037921,2]
[356563691,1742680249080,-150.0,0.00037921,2]
[356563692,1742680249089,-150.0,0.00037921,2]
[356563693,1742680249099,-150.0,0.00037921,2]
[356563694,1742680249108,-150.0,0.00037921,2]
[356563695,1742680249118,-150.0,0.00037921,2]
[356563696,1742680249128,-153.0,0.00038,2]
[356563697,1742680249138,-439.18,0.00038087,2]
[356563698,1742680249147,-191.15,0.00038356,2]
[356563699,1742680249157,-198.28,0.00038443,2]
[356563700,1742680249166,-602.83,0.00038658,2]
[356563701,1742680249175,-1156.0,0.000387,2]
[356563702,1742680249184,-151.0,0.00038715,14]
[356563703,1742680249193,-191.15,0.00039726,2]
[356563704,1742680249202,-369.0,0.000398,2]
[356563705,1742680249211,-151.0,0.0004,14]
[356563706,1742680249220,-151.0,0.0004,14]
[356563707,1742680249229,-520.86209,0.0004,14]
[356563708,1742680249238,-520.86209,0.0004,14]
[356563709,1742680249247,-151.0,0.0004,14]
[356563710,1742680249256,-606.722214,0.0004,14]
[356563711,1742680249265,-606.722214,0.0004,14]
[356563712,1742680249275,-340.01,0.0004,2]
[356563713,1742680249287,-340.01,0.0004,2]
[356563714,1742680249296,-340.01,0.0004,2]
[356563715,1742680249305,-340.01,0.0004,2]
[356563716,1742680249314,-340.01,0.0004,2]
[356563717,1742680249325,-340.01,0.0004,2]
[356563718,1742680249335,-340.01,0.0004,2]
[356563719,1742680249344,-340.01,0.0004,2]
[356563720,1742680249354,-340.01,0.0004,2]
[356563721,1742680249364,-340.01,0.0004,2]
[356563722,1742680249374,-340.01,0.0004,2]
[356563723,1742680249383,-340.01,0.0004,2]
[356563724,1742680249392,-2000.0,0.00040102,8]
[356563725,1742680249402,-153.0,0.00040274,14]
[356563726,1742680249411,-151.0,0.000405,14]
[356563727,1742680249420,-151.0,0.000405,5]
[356563728,1742680249429,-191.794696,0.000405,14]
[356563729,1742680249439,-151.0,0.000405,14]
[356563730,1742680249448,-151.0,0.000405,14]
[356563731,1742680249457,-260.882174,0.000405,14]
[356563732,1742680249467,-200.172736,0.000405,14]
[356563733,1742680249476,-151.0,0.000405,14]
[356563734,1742680249485,-228.447396,0.000405,14]
[356563735,1742680249495,-151.0,0.000405,14]
[356563736,1742680249504,-30000.0,0.000405,2]
[356563737,1742680249514,-151.0,0.00040822,14]
[356563738,1742680249523,-602.83,0.00040921,2]
[356563739,1742680249533,-174.0,0.00041,14]
[356563740,1742680249542,-191.15,0.00041095,120]
[356563741,1742680249552,-150.0,0.00041096,2]
[356563742,1742680249562,-250.0,0.00041201,2]
[356563743,1742680249572,-200.32,0.00041273,120]
[356563744,1742680249581,-164.55,0.00041296,2]
[356563745,1742680249591,-282.11168189,0.00041533,3]
[356563746,1742680249601,-151.0,0.0004157,14]
[356563747,1742680249610,-2727.80214473,0.00042,117]
[356563748,1742680249620,-153.0,0.00042288,90]
[356563749,1742680249629,-272.0323711,0.00042292,4]
[356563750,1742680249639,-153.0,0.00042329,2]
[356563751,1742680249649,-151.0,0.00042348,10]
[356563752,1742680249658,-151.0,0.00042348,14]
[356563753,1742680249668,-151.0,0.00042348,14]
[356563754,1742680249678,-153.0,0.00042351,2]
[356563755,1742680249688,-189.02834944,0.00042367,14]
[356563756,1742680249700,-1000.0,0.00042445,14]
[356563757,1742680249709,-191.15,0.00042465,120]
[356563758,1742680249719,-1000.0,0.00042475,14]
[356563759,1742680249730,-1000.0,0.0004257,14]
[356563760,1742680249740,-1000.0,0.00042638,14]
[356563761,1742680249749,-1000.0,0.00042779,14]
[356563762,1742680249760,-150.0,0.00042797,14]
[356563763,1742680249769,-1000.0,0.00042886,14]
[356563764,1742680249779,-164.55,0.00042947,2]
[356563765,1742680249788,-1000.0,0.00043,10]
[356563766,1742680249798,-784.0,0.00043,12]
[356563767,1742680249807,-1000.0,0.00043,5]
[356563768,1742680249817,-1000.0,0.00043,2]
[356563769,1742680249826,-1000.0,0.00043,9]
[356563770,1742680249835,-1000.0,0.00043,13]
[356563771,1742680249845,-1000.0,0.00043,13]
[356563772,1742680249854,-1006.0,0.00043,2]
[356563773,1742680249864,-1000.0,0.00043,7]
[356563774,1742680249874,-1000.0,0.00043,4]
[356563775,1742680249883,-1002.0,0.00043,12]
[356563776,1742680249892,-151.0,0.00043,14]
[356563777,1742680249902,-169.758542,0.00043,5]
[356563778,1742680249911,-150.0,0.00043018,2]
[356563779,1742680249920,-150.0,0.00043066,2]
[356563780,1742680249929,-1000.0,0.00043127,14]
[356563781,1742680249938,-174.0,0.00043151,90]
[356563782,1742680249948,-150.0,0.0004317,2]
[356563783,1742680249958,-150.0,0.00043185,2]
[356563784,1742680249967,-602.83,0.00043185,2]
[356563785,1742680249976,-150.0,0.0004319,2]
[356563786,1742680249985,-150.0,0.00043202,14]
[356563787,1742680249994,-150.0,0.00043212,2]
[356563788,1742680250003,-150.0,0.00043229,2]
[356563789,1742680250013,-150.0,0.00043235,2]
[356563790,1742680250023,-150.0,0.00043236,2]
[356563791,1742680250032,-150.0,0.00043237,2]
[356563792,1742680250042,-150.0,0.00043239,2]
[356563793,1742680250051,-150.0,0.00043245,2]
[356563794,1742680250061,-150.0,0.00043252,2]
[356563795,1742680250070,-150.0,0.00043282,2]
[356563796,1742680250079,-150.0,0.00043288,2]
[356563797,1742680250089,-150.0,0.00043289,2]
[356563798,1742680250098,-150.0,0.00043291,2]
[356563799,1742680250107,-150.0,0.00043294,2]
[356563800,1742680250116,-150.0,0.00043294,2]
[356563801,1742680250126,-150.0,0.00043295,14]
[356563802,1742680250135,-150.0,0.00043297,2]
[356563803,1742680250145,-151.0,0.000433,14]
[356563804,1742680250155,-14092.3999669,0.000433,120]
[356563805,1742680250164,-151.0,0.000433,14]
[356563806,1742680250174,-151.0,0.000433,14]
[356563807,1742680250184,-285.600856,0.000433,14]
[356563808,1742680250193,-160.377422,0.000433,14]
[356563809,1742680250202,-520.86209,0.000433,14]
[356563810,1742680250212,-520.86209,0.000433,14]
[356563811,1742680250221,-151.0,0.000433,14]
[356563812,1742680250230,-606.722214,0.000433,14]
[356563813,1742680250239,-606.722214,0.000433,14]
[356563814,1742680250249,-152.0,0.00043301,3]
[356563815,1742680250258,-150.0,0.00043302,2]
[356563816,1742680250267,-150.0,0.00043315,2]
[356563817,1742680250279,-150.0,0.00043327,2]
[356563818,1742680250289,-150.0,0.00043333,2]
[356563819,1742680250298,-150.0,0.00043351,2]
[356563820,1742680250308,-150.0,0.00043353,2]
[356563821,1742680250317,-150.0,0.00043382,2]
[356563822,1742680250326,-150.0,0.00043386,2]
[356563823,1742680250336,-151.0,0.0004339,14]
[356563824,1742680250346,-151.0,0.0004339,14]
[356563825,1742680250355,-151.0,0.0004339,14]
[356563826,1742680250365,-150.0,0.00043393,2]
[356563827,1742680250374,-160.951412,0.000434,14]
[356563828,1742680250383,-150.0,0.00043413,14]
[356563829,1742680250392,-1000.0,0.00043415,14]
[356563830,1742680250401,-950.42684278,0.00043424,60]
[356563831,1742680250411,-150.0,0.00043438,2]
[356563832,1742680250420,-150.0,0.00043443,2]
[356563833,1742680250429,-230.46115118,0.00043443,14]
[356563834,1742680250438,-150.0,0.00043445,14]
[356563835,1742680250448,-150.0,0.00043446,2]
[356563836,1742680250457,-150.0,0.00043461,2]
[356563837,1742680250466,-150.0,0.00043463,2]
[356563838,1742680250475,-150.0,0.00043464,2]
[356563839,1742680250484,-150.0,0.00043473,2]
[356563840,1742680250493,-150.0,0.00043477,2]
[356563841,1742680250502,-1000.0,0.00043481,14]
[356563842,1742680250511,-150.0,0.00043485,2]
[356563843,1742680250520,-150.0,0.00043486,2]
[356563844,1742680250529,-150.0,0.0004349,2]
[356563845,1742680250538,-150.0,0.0004349,2]
[356563846,1742680250547,-150.0,0.00043492,2]
[356563847,1742680250556,-150.0,0.00043494,2]
[356563848,1742680250565,-150.0,0.00043494,2]
[356563849,1742680250574,-15000.0,0.000435,2]
[356563850,1742680250583,-831.09206336,0.000435,120]
[356563851,1742680250592,-1000.0,0.000435,3]